bitfinex-derivatives/quotes_BTCF0:USTF0_20210409
["timestamp","ask_amount","ask_price","bid_price","bid_amount"]
[1617980072471,0.10725655,58421.0,58420.0,2.9762]
[1617980072665,0.47174919,58421.0,58420.0,2.9762]
[1617980073070,0.47174919,58421.0,58420.0,3.2462]
[1617980073465,0.10725655,58421.0,58420.0,3.2462]
[1617980073665,1.10725655,58421.0,58420.0,3.2462]
[1617980073865,0.10725655,58421.0,58420.0,3.2462]
[1617980075470,0.10725655,58421.0,58420.0,0.37725655]
[1617980075691,2.86375655,58421.0,58420.0,0.37725655]
[1617980077373,3.86375655,58421.0,58420.0,0.37725655]
[1617980077704,3.86375655,58421.0,58420.0,0.27]
[1617980078075,3.86375655,58421.0,58417.0,0.27]
[1617980078374,3.86375655,58421.0,58420.0,0.27]
[1617980078780,2.86375655,58421.0,58417.0,0.27]
[1617980078976,2.86375655,58421.0,58420.0,0.27]
[1617980079290,2.86375655,58421.0,58416.0,3.53280799]
[1617980079291,2.86375655,58421.0,58417.0,0.27]
[1617980079575,3.86375655,58421.0,58417.0,0.27]
[1617980079775,3.86375655,58421.0,58420.0,0.27]
[1617980079976,3.86375655,58421.0,58417.0,0.27]
[1617980080177,1.0,58418.0,58417.0,0.27]
[1617980080379,1.0,58418.0,58416.0,3.2354]
[1617980080780,1.0,58418.0,58417.0,0.27]
[1617980081181,3.22796875,58421.0,58417.0,0.27]
[1617980081381,1.0,58418.0,58417.0,0.27]
[1617980082580,2.86375655,58421.0,58417.0,0.27]
[1617980083081,3.86375655,58421.0,58417.0,0.27]
[1617980083582,2.86375655,58421.0,58417.0,0.27]
[1617980084481,2.86375655,58421.0,58417.0,0.56780396]
[1617980085628,1.0,58419.0,58417.0,0.27]
[1617980085815,1.11482,58419.0,58417.0,0.27]
[1617980088117,1.0,58418.0,58417.0,0.27]
[1617980096495,1.36422483,58418.0,58417.0,0.27]
[1617980097095,1.0,58418.0,58417.0,0.27]
[1617980098497,1.36427342,58418.0,58413.0,0.27]
[1617980098698,4.12827342,58418.0,58413.0,0.27]
[1617980098897,1.0,58414.0,58413.0,0.27]
[1617980099298,3.9508,58414.0,58413.0,0.27]
[1617980099698,4.05805655,58414.0,58413.0,0.27]
[1617980100198,4.05805655,58414.0,58411.0,0.29811166]
[1617980100398,4.05805655,58414.0,58412.0,0.27]
[1617980100699,4.05805655,58414.0,58411.0,0.29811166]
[1617980100900,1.0,58413.0,58411.0,0.29811166]
[1617980101199,1.0,58413.0,58412.0,0.27]
[1617980101398,0.10725655,58414.0,58412.0,0.27]
[1617980101599,0.10725655,58414.0,58412.0,0.56814321]
[1617980101999,2.5522,58413.0,58412.0,0.29814321]
[1617980102799,2.69697,58413.0,58412.0,0.56814321]
[1617980103000,2.69697,58413.0,58412.0,0.27]
[1617980103502,3.69697,58413.0,58412.0,0.29818476]
[1617980103700,3.69697,58413.0,58412.0,0.27]
[1617980104101,3.69697,58413.0,58411.0,0.29817783]
[1617980104502,3.69697,58413.0,58412.0,0.27]
[1617980106307,1.14477,58413.0,58412.0,0.27]
[1617980106706,1.14477,58413.0,58412.0,3.4918]
[1617980106906,1.0,58413.0,58412.0,3.4918]
[1617980107310,3.5946,58413.0,58412.0,3.4918]
[1617980107609,3.5946,58413.0,58412.0,3.79023846]
[1617980108719,3.5946,58413.0,58412.0,0.56843846]
[1617980109014,3.5946,58413.0,58412.0,0.27]
[1617980109412,3.5946,58413.0,58412.0,0.29850576]
[1617980109811,3.5946,58413.0,58412.0,0.56850576]
[1617980110013,3.5946,58413.0,58412.0,0.29850576]
[1617980110411,3.5946,58413.0,58412.0,0.56850576]
[1617980111314,3.5946,58413.0,58412.0,0.27]
[1617980111315,3.95939323,58413.0,58412.0,0.27]
[1617980111517,4.05910323,58413.0,58412.0,0.56864113]
[1617980111716,4.05910323,58413.0,58411.0,0.29867703]
[1617980112024,0.50151499,58412.0,58411.0,0.29867703]
[1617980112214,4.05917792,58413.0,58411.0,0.29867703]
[1617980112514,4.05917792,58413.0,58412.0,0.56873564]
[1617980112815,4.05917792,58413.0,58412.0,0.29873564]
[1617980113216,4.05917792,58413.0,58412.0,0.56873564]
[1617980116820,4.50580535,58413.0,58412.0,0.56873564]
[1617980117019,4.05917792,58413.0,58412.0,0.56873564]
[1617980117622,4.50603096,58413.0,58412.0,0.92820339]
[1617980128338,4.50603096,58413.0,58412.0,0.56873564]
[1617980129837,3.50603096,58413.0,58412.0,0.56873564]
[1617980130038,4.40632096,58413.0,58412.0,0.56873564]
[1617980135846,4.91435573,58413.0,58412.0,0.56873564]
[1617980138047,3.5946,58413.0,58412.0,0.27]
[1617980138248,4.91550267,58413.0,58412.0,0.27]
[1617980138448,4.91550267,58413.0,58411.0,0.30025795]
[1617980138849,1.75815114,58412.0,58411.0,0.30025795]
[1617980139049,1.2501124,58412.0,58411.0,0.30025795]
[1617980139249,1.2501124,58412.0,58411.0,0.57025795]
[1617980139455,1.75812686,58412.0,58411.0,0.57025795]
[1617980139749,2.75812686,58412.0,58411.0,0.57025795]
[1617980139951,6.32452686,58412.0,58411.0,0.57025795]
[1617980140151,6.02721331,58412.0,58411.0,0.27]
[1617980140351,6.32450691,58412.0,58411.0,0.27]
[1617980140553,6.32450691,58412.0,58410.0,0.30020347]
[1617980140955,1.25001825,58411.0,58410.0,0.30020347]
[1617980141155,2.25001825,58411.0,58410.0,0.30020347]
[1617980141355,2.25001825,58411.0,58410.0,0.57020347]
[1617980142056,5.17871825,58411.0,58410.0,0.57020347]
[1617980142256,4.88142476,58411.0,58410.0,0.57020347]
[1617980142459,5.17870152,58411.0,58410.0,0.57020347]
[1617980144059,5.68666073,58411.0,58410.0,0.27]
[1617980144460,5.68666073,58411.0,58410.0,0.30026934]
[1617980144660,5.17870152,58411.0,58410.0,0.30026934]
[1617980144962,5.68670086,58411.0,58410.0,0.57026934]
[1617980145159,5.68670086,58411.0,58410.0,0.30026934]
[1617980145359,5.68670086,58411.0,58410.0,0.57026934]
[1617980145658,4.94237097,58411.0,58410.0,0.27]
[1617980145869,3.9287,58411.0,58410.0,0.27]
[1617980146061,5.24960876,58411.0,58409.0,0.30046813]
[1617980146261,1.26101486,58410.0,58409.0,0.30046813]
[1617980146661,2.26101486,58410.0,58409.0,0.30046813]
[1617980146961,2.26101486,58410.0,58409.0,0.57046813]
[1617980148162,2.76901971,58410.0,58409.0,0.57046813]
[1617980148563,2.26101486,58410.0,58409.0,0.57046813]
[1617980150763,2.76903344,58410.0,58409.0,0.57046813]
[1617980152165,2.76903344,58410.0,58409.0,0.30046813]
[1617980152467,5.47633344,58410.0,58407.0,0.30065432]
[1617980152767,5.47633344,58410.0,58404.0,0.36078518]
[1617980152768,1.32088554,58408.0,58405.0,0.30072852]
[1617980152966,1.32091868,58406.0,58404.0,0.3008232]
[1617980153370,0.81277898,58405.0,58404.0,0.3008232]
[1617980153568,0.98190967,58405.0,58404.0,0.3008232]
[1617980153866,4.18457898,58405.0,58404.0,0.3008232]
[1617980154066,5.29183553,58405.0,58404.0,0.3008232]
[1617980154267,5.77599382,58405.0,58404.0,0.3008232]
[1617980158272,5.77599382,58405.0,58403.0,0.30070571]
[1617980158273,6.28385767,58405.0,58403.0,0.30070571]
[1617980158473,1.29798151,58404.0,58403.0,0.30070571]
[1617980158772,0.98252991,58404.0,58403.0,0.30070571]
[1617980158973,4.49742991,58404.0,58403.0,0.30070571]
[1617980159374,4.81285533,58404.0,58403.0,0.30070571]
[1617980160077,1.29795533,58404.0,58403.0,0.30070571]
[1617980160303,0.98252991,58404.0,58403.0,0.66145125]
[1617980160482,1.98252991,58404.0,58403.0,0.66145125]
[1617980160678,1.98252991,58404.0,58403.0,3.88375125]
[1617980161276,1.98252991,58404.0,58403.0,3.94481303]
[1617980162379,1.98252991,58404.0,58403.0,0.72251303]
[1617980162580,5.11832991,58404.0,58403.0,0.72251303]
[1617980162779,5.43391124,58404.0,58403.0,0.66145125]
[1617980163181,6.43391124,58404.0,58403.0,0.30070571]
[1617980163381,3.29811124,58404.0,58403.0,0.30070571]
[1617980163581,3.29811124,58404.0,58403.0,2.947]
[1617980163780,2.29811124,58404.0,58403.0,2.947]
[1617980163983,2.49037723,58404.0,58403.0,2.947]
[1617980164185,2.79513502,58404.0,58403.0,2.947]
[1617980166286,2.79513502,58404.0,58398.0,0.30103539]
[1617980166786,3.87364291,58399.0,58397.0,0.3009694]
[1617980167086,1.61324762,58398.0,58397.0,0.3009694]
[1617980167585,1.61324762,58398.0,58397.0,0.3109694]
[1617980167786,2.61324762,58398.0,58397.0,0.3109694]
[1617980168189,2.72050417,58398.0,58397.0,0.3109694]
[1617980168788,1.72050417,58398.0,58397.0,0.3109694]
[1617980170994,1.72050417,58398.0,58397.0,0.01]
[1617980171391,2.72050417,58398.0,58396.0,0.30086146]
[1617980171591,1.30047695,58397.0,58396.0,0.30086146]
[1617980171990,1.30047695,58397.0,58396.0,0.57086146]
[1617980172491,1.30047695,58397.0,58396.0,0.27]
[1617980172990,1.30047695,58397.0,58395.0,0.30084908]
[1617980173190,0.18383904,58397.0,58396.0,0.27]
[1617980173494,2.30037478,58397.0,58396.0,0.27]
[1617980173892,2.30037478,58397.0,58394.0,0.27]
[1617980174191,2.30037478,58397.0,58396.0,0.26]
[1617980174392,0.42674244,58398.0,58396.0,0.26]
[1617980174590,0.42674244,58398.0,58394.0,0.27]
[1617980174794,1.11645813,58397.0,58395.0,0.27]
[1617980175094,0.42674244,58398.0,58393.0,0.30093046]
[1617980175294,1.30450967,58396.0,58394.0,0.27]
[1617980175595,0.19204732,58397.0,58396.0,0.27]
[1617980175795,1.30844765,58395.0,58394.0,0.27]
[1617980176195,2.11639466,58395.0,58393.0,0.01]
[1617980176395,2.30843075,58395.0,58394.0,0.27]
[1617980176795,2.30843075,58395.0,58392.0,0.01]
[1617980177295,1.0,58395.0,58394.0,0.27]
[1617980177496,0.3285652,58394.0,58392.0,0.57098666]
[1617980177696,5.25574633,58395.0,58394.0,0.01]
[1617980177995,5.25574633,58395.0,58393.0,0.26]
[1617980177996,4.58431869,58395.0,58393.0,0.26]
[1617980178195,0.10725655,58394.0,58393.0,0.26]
[1617980178501,1.74372834,58394.0,58392.0,0.01]
[1617980178796,1.435802,58394.0,58393.0,0.27]
[1617980178995,2.55179324,58394.0,58393.0,0.27]
[1617980179295,2.55179324,58394.0,58389.0,0.30108035]
[1617980179495,1.435802,58394.0,58393.0,0.27]
[1617980179896,1.0,58392.0,58391.0,0.27]
[1617980180096,1.09654,58392.0,58389.0,0.30107207]
[1617980180296,1.09654,58392.0,58391.0,0.27]
[1617980180297,2.40437503,58392.0,58391.0,0.27]
[1617980180597,2.73275109,58392.0,58390.0,0.26]
[1617980180896,1.30774796,58391.0,58389.0,0.30107207]
[1617980181098,1.30774796,58391.0,58390.0,0.27]
[1617980181298,0.63823529,58391.0,58390.0,0.27]
[1617980181499,1.30769723,58391.0,58390.0,0.27]
[1617980181699,2.30769723,58391.0,58390.0,0.27]
[1617980182399,2.30769723,58391.0,58388.0,0.01]
[1617980182599,0.09654,58392.0,58390.0,0.26]
[1617980183001,3.65270936,58391.0,58388.0,0.27]
[1617980183201,1.11571126,58389.0,58386.0,0.30047459]
[1617980183501,0.66937938,58387.0,58386.0,0.30047459]
[1617980184001,0.66937938,58387.0,58386.0,0.26]
[1617980184201,1.11563264,58387.0,58386.0,0.26]
[1617980184402,1.22288919,58387.0,58383.0,0.30005423]
[1617980184702,0.19309725,58386.0,58385.0,0.01]
[1617980184901,0.86247438,58386.0,58383.0,0.30005423]
[1617980185101,0.86247438,58386.0,58384.0,0.27]
[1617980185301,0.19309725,58386.0,58385.0,0.27]
[1617980185502,0.19309725,58386.0,58383.0,0.30005423]
[1617980185503,0.66929309,58385.0,58383.0,0.30005423]
[1617980185803,0.55350981,58387.0,58385.0,0.27]
[1617980186002,0.66932519,58386.0,58385.0,0.27]
[1617980186202,0.66932519,58386.0,58383.0,0.30005423]
[1617980186404,0.66932519,58386.0,58385.0,0.27]
[1617980186802,0.66932519,58386.0,58383.0,0.30005423]
[1617980187002,0.66932519,58386.0,58378.0,0.4889]
[1617980187003,0.66932519,58386.0,58385.0,0.27]
[1617980187403,0.66932519,58386.0,58384.0,0.57001765]
[1617980187603,0.66932519,58386.0,58385.0,0.26]
[1617980188104,0.66932519,58386.0,58384.0,0.01]
[1617980188304,0.10725655,58387.0,58385.0,0.25]
[1617980188705,0.66918364,58386.0,58384.0,0.30004901]
[1617980188907,0.66918605,58385.0,58384.0,0.27]
[1617980189205,0.66918605,58385.0,58383.0,0.30008556]
[1617980189405,0.10725655,58387.0,58383.0,0.30008556]
[1617980189706,0.10725655,58387.0,58384.0,0.57004481]
[1617980189907,0.10725655,58387.0,58384.0,0.27]
[1617980190206,3.19047263,58385.0,58384.0,0.30006154]
[1617980190405,2.5213,58385.0,58384.0,0.57006154]
[1617980190606,3.07881651,58385.0,58384.0,0.27]
[1617980190806,3.07881651,58385.0,58381.0,0.30014667]
[1617980191005,3.38296969,58385.0,58382.0,0.27]
[1617980191207,2.5213,58385.0,58384.0,0.27]
[1617980191409,2.5213,58385.0,58381.0,0.30014667]
[1617980191707,0.19272178,58384.0,58382.0,0.27]
[1617980192108,0.66911166,58383.0,58382.0,0.27]
[1617980192519,0.66911166,58383.0,58382.0,0.57006116]
[1617980193011,0.66911166,58383.0,58382.0,0.30006116]
[1617980193211,0.66911166,58383.0,58382.0,0.57006116]
[1617980194510,0.66911166,58383.0,58382.0,0.27]
[1617980194910,0.66911166,58383.0,58381.0,0.57010577]
[1617980195111,3.2516,58382.0,58381.0,0.57010577]
[1617980195310,3.2516,58382.0,58381.0,0.30010577]
[1617980195510,3.2516,58382.0,58381.0,0.57010577]
[1617980195712,5.11336476,58382.0,58381.0,0.27]
[1617980196211,5.11336476,58382.0,58380.0,0.01]
[1617980196512,0.10725655,58381.0,58376.0,0.30043489]
[1617980196714,0.0518,58380.0,58379.0,0.26]
[1617980196913,0.99444632,58380.0,58379.0,0.26]
[1617980197114,0.99444632,58380.0,58376.0,0.26]
[1617980197425,0.99444632,58380.0,58379.0,0.26]
[1617980197426,0.13278,58380.0,58379.0,0.26]
[1617980197714,1.24767301,58380.0,58376.0,0.27]
[1617980198116,0.57871694,58380.0,58379.0,0.26]
[1617980198317,0.10725655,58374.0,58373.0,0.30056968]
[1617980198519,0.10725655,58374.0,58372.0,0.30061189]
[1617980198719,1.10725655,58374.0,58373.0,0.26]
[1617980199020,0.10725655,58374.0,58372.0,0.27]
[1617980199221,0.10725655,58374.0,58371.0,0.30066314]
[1617980199420,0.77616393,58374.0,58373.0,0.25]
[1617980199620,0.77616393,58374.0,58372.0,0.27]
[1617980200020,0.86143048,58373.0,58370.0,0.25]
[1617980200221,1.86143048,58373.0,58369.0,0.30120788]
[1617980200421,0.66867927,58370.0,58367.0,0.30133683]
[1617980200922,0.30395557,58368.0,58367.0,0.57133683]
[1617980201123,1.40874557,58368.0,58366.0,0.30131584]
[1617980201322,1.10479,58368.0,58367.0,0.30120924]
[1617980201523,1.10479,58368.0,58367.0,0.57120924]
[1617980201724,1.10479,58368.0,58367.0,0.30120924]
[1617980202022,1.10479,58368.0,58367.0,0.57120924]
[1617980202423,4.40434655,58368.0,58367.0,0.63229209]
[1617980202723,4.40434655,58368.0,58367.0,0.57120924]
[1617980202724,4.7082231,58368.0,58367.0,0.57120924]
[1617980202923,4.7082231,58368.0,58367.0,0.27]
[1617980203125,1.5159231,58368.0,58367.0,0.27]
[1617980203424,3.1915,58367.0,58366.0,0.30130149]
[1617980203624,3.1915,58367.0,58364.0,0.30136138]
[1617980203625,3.49534603,58367.0,58364.0,0.30136138]
[1617980203923,4.1915,58367.0,58366.0,0.01]
[1617980204123,4.1915,58367.0,58365.0,0.30135736]
[1617980204124,4.49535986,58367.0,58365.0,0.30135736]
[1617980204327,4.49535986,58367.0,58365.0,0.31135736]
[1617980204548,3.49535986,58367.0,58365.0,0.01]
[1617980204756,3.49535986,58367.0,58364.0,0.30129428]
[1617980205029,0.30380599,58366.0,58364.0,0.30129428]
[1617980205235,3.1915,58367.0,58363.0,0.27]
[1617980205236,3.1915,58367.0,58365.0,0.01]
[1617980205628,3.1915,58367.0,58364.0,0.27]
[1617980205842,1.0,58366.0,58364.0,0.27]
[1617980206125,3.1915,58367.0,58362.0,0.30141921]
[1617980206126,1.0,58365.0,58362.0,0.30141921]
[1617980206526,1.30379545,58363.0,58361.0,0.30152526]
[1617980206778,1.0,58363.0,58361.0,0.30152526]
[1617980206947,0.66837205,58362.0,58355.0,0.30187166]
[1617980207228,0.30383199,58357.0,58355.0,0.30187166]
[1617980207631,0.30383199,58357.0,58356.0,0.27]
[1617980207930,0.36446215,58359.0,58356.0,0.27]
[1617980208131,1.30375153,58357.0,58353.0,0.57197881]
[1617980208335,1.30375153,58357.0,58354.0,0.27]
[1617980208532,0.10725655,58355.0,58354.0,0.27]
[1617980208735,0.53767861,58355.0,58351.0,0.30207217]
[1617980209042,0.23401655,58355.0,58354.0,0.27]
[1617980209243,0.23401655,58355.0,58352.0,0.30207065]
[1617980209453,1.23401655,58355.0,58352.0,0.30207065]
[1617980209730,0.23401655,58355.0,58354.0,0.01]
[1617980209930,0.23401655,58355.0,58351.0,0.30201559]
[1617980209931,1.0,58354.0,58351.0,0.30201559]
[1617980210131,0.10725655,58355.0,58354.0,0.27]
[1617980210414,0.10725655,58355.0,58354.0,2.8262]
[1617980210647,0.10725655,58355.0,58354.0,2.66345655]
[1617980211033,0.10725655,58355.0,58354.0,2.97523506]
[1617980211436,0.10725655,58355.0,58354.0,2.67345655]
[1617980211634,0.10725655,58355.0,58354.0,0.41900208]
[1617980211834,0.10725655,58355.0,58354.0,3.55500208]
[1617980212834,0.10725655,58355.0,58354.0,0.31174553]
[1617980213144,4.78665655,58355.0,58354.0,0.31174553]
[1617980213537,4.78665655,58355.0,58354.0,0.01]
[1617980213977,4.78665655,58355.0,58351.0,0.26]
[1617980214237,1.22807655,58355.0,58354.0,0.02]
[1617980214580,1.22807655,58355.0,58354.0,3.07349655]
[1617980214667,1.22807655,58355.0,58354.0,3.05349655]
[1617980214668,0.22807655,58355.0,58354.0,3.05349655]
[1617980214857,0.10725655,58355.0,58354.0,3.05349655]
[1617980215087,0.10725655,58355.0,58354.0,3.06349655]
[1617980215351,0.30343028,58360.0,58354.0,3.06349655]
[1617980215439,0.30343028,58360.0,58355.0,0.2]
[1617980215641,0.3033934,58365.0,58359.0,2.6898]
[1617980215841,0.3033934,58365.0,58359.0,3.6898]
[1617980216040,0.30338828,58367.0,58364.0,1.0]
[1617980216451,0.30338801,58371.0,58365.0,0.21]
[1617980216688,0.30338801,58371.0,58366.0,0.10725655]
[1617980216873,0.41063863,58375.0,58369.0,1.0]
[1617980217067,0.41063863,58375.0,58370.0,1.0]
[1617980217068,0.10725655,58375.0,58370.0,1.0]
[1617980217351,0.3033852,58377.0,58373.0,1.0]
[1617980217543,0.30338432,58379.0,58373.0,1.0]
[1617980217741,0.30338432,58379.0,58374.0,0.27]
[1617980218144,0.30339343,58380.0,58374.0,0.27]
[1617980218542,0.30339343,58380.0,58379.0,0.10725655]
[1617980218743,0.30339343,58380.0,58379.0,0.22917655]
[1617980218946,0.10725655,58382.0,58379.0,0.49917655]
[1617980219144,0.30341756,58380.0,58379.0,0.49917655]
[1617980219904,4.20852529,58380.0,58379.0,0.27]
[1617980220087,4.3986292,58380.0,58379.0,0.27]
[1617980220308,4.09521164,58380.0,58374.0,0.01]
[1617980220491,4.39867941,58380.0,58374.0,0.01]
[1617980220646,0.10725655,58375.0,58372.0,0.10725655]
[1617980220846,0.4107238,58375.0,58372.0,0.10725655]
[1617980221047,0.30349993,58373.0,58372.0,0.10725655]
[1617980221451,0.10725655,58375.0,58372.0,0.11725655]
[1617980222151,0.30350341,58374.0,58372.0,0.11725655]
[1617980222353,0.10725655,58375.0,58372.0,0.11725655]
[1617980222354,0.41075923,58375.0,58372.0,0.11725655]
[1617980222852,0.41075923,58375.0,58372.0,0.4178798]
[1617980222853,0.10725655,58375.0,58372.0,0.4178798]
[1617980223451,0.10725655,58375.0,58373.0,0.30068419]
[1617980223952,0.10725655,58375.0,58374.0,0.27]
[1617980224452,0.41085226,58375.0,58373.0,0.27]
[1617980224652,0.41085226,58375.0,58374.0,3.4994]
[1617980224954,0.41085226,58375.0,58374.0,3.2294]
[1617980225352,0.41085226,58375.0,58374.0,0.27]
[1617980225852,3.96295226,58375.0,58373.0,0.27]
[1617980226251,3.96295226,58375.0,58374.0,0.27]
[1617980226451,3.96295226,58375.0,58373.0,0.27]
[1617980226851,0.30368926,58374.0,58373.0,0.27]
[1617980227053,3.96304241,58375.0,58373.0,0.27]
[1617980227752,3.96304241,58375.0,58372.0,0.27]
[1617980228653,3.96304241,58375.0,58372.0,0.57066048]
[1617980229053,0.3037492,58373.0,58370.0,0.57055101]
[1617980229351,0.3037492,58373.0,58370.0,0.30055101]
[1617980229753,0.3037492,58373.0,58371.0,0.27]
[1617980230654,0.3037492,58373.0,58371.0,0.57058816]
[1617980231056,3.5555,58372.0,58371.0,0.30058816]
[1617980231355,4.68859,58372.0,58371.0,0.30058816]
[1617980231755,5.35705858,58372.0,58371.0,0.27]
[1617980232163,5.35705858,58372.0,58352.0,0.50177909]
[1617980232164,5.80268909,58372.0,58366.0,0.01]
[1617980232455,0.66856059,58367.0,58363.0,0.30126011]
[1617980232757,0.77581714,58367.0,58364.0,0.01]
[1617980232956,0.36465967,58365.0,58361.0,0.30139885]
[1617980233356,0.66856477,58365.0,58364.0,0.27]
[1617980233556,0.66856477,58365.0,58362.0,0.01]
[1617980233557,0.5529799,58367.0,58362.0,0.01]
[1617980233757,0.30393838,58363.0,58357.0,0.30156565]
[1617980233958,0.30393838,58363.0,58360.0,0.27]
[1617980234158,0.36468145,58361.0,58357.0,0.30156565]
[1617980234356,0.66862465,58361.0,58357.0,0.30156565]
[1617980234656,0.10725655,58359.0,58358.0,0.26]
[1617980234857,1.0,58358.0,58357.0,0.30156565]
[1617980235056,1.54656739,58359.0,58358.0,0.27]
[1617980235457,1.54656739,58359.0,58357.0,0.57156565]
[1617980235658,1.54656739,58359.0,58358.0,0.27]
[1617980235857,1.24263655,58359.0,58358.0,0.27]
[1617980236060,1.54657276,58359.0,58358.0,0.27]
[1617980236659,0.54657276,58359.0,58358.0,0.57139298]
[1617980237058,5.17099332,58359.0,58356.0,0.27]
[1617980237458,5.17099332,58359.0,58339.0,0.50279499]
[1617980237459,4.50233655,58359.0,58358.0,0.27]
[1617980237657,4.50233655,58359.0,58354.0,0.56161726]
[1617980237860,1.91135727,58359.0,58355.0,0.01]
[1617980238058,2.6062,58356.0,58355.0,0.01]
[1617980238358,3.91014813,58356.0,58354.0,0.30161726]
[1617980238558,2.91014813,58356.0,58355.0,0.27]
[1617980238859,2.6062,58356.0,58353.0,0.30164407]
[1617980239058,2.91014593,58356.0,58353.0,0.30164407]
[1617980239260,0.30394729,58354.0,58353.0,0.30164407]
[1617980239761,0.30394729,58354.0,58353.0,0.57164407]
[1617980239961,0.30394729,58354.0,58353.0,0.27]
[1617980240161,0.3647159,58356.0,58353.0,0.63245353]
[1617980240162,0.30394529,58356.0,58353.0,0.63245353]
[1617980240394,0.30394529,58356.0,58353.0,0.36245353]
[1617980240561,3.3944,58356.0,58355.0,0.30129012]
[1617980240760,3.69837109,58356.0,58355.0,0.30129012]
[1617980240962,3.69837109,58356.0,58355.0,0.57129012]
[1617980241162,4.69837109,58356.0,58355.0,0.27]
[1617980241534,5.06310037,58356.0,58355.0,0.27]
[1617980241661,5.06310037,58356.0,58354.0,0.27]
[1617980241978,5.06310037,58356.0,58355.0,0.27]
[1617980241979,5.17920037,58356.0,58355.0,0.27]
[1617980242361,1.78480037,58356.0,58351.0,0.26]
[1617980242562,1.78480037,58356.0,58355.0,0.27]
[1617980242864,3.6049,58356.0,58352.0,0.25]
[1617980243063,5.04234617,58356.0,58352.0,0.25]
[1617980243263,1.0,58351.0,58350.0,0.27]
[1617980243664,1.0,58351.0,58344.0,0.30192013]
[1617980243665,1.85231535,58351.0,58344.0,0.30192013]
[1617980244064,0.30393036,58345.0,58344.0,0.30192013]
[1617980244263,2.83383036,58345.0,58343.0,0.30194734]
[1617980244463,2.83383036,58345.0,58344.0,0.27]
[1617980244665,2.94108691,58345.0,58344.0,0.27]
[1617980244965,2.94108691,58345.0,58342.0,0.30196298]
[1617980245165,2.94108691,58345.0,58344.0,0.01]
[1617980245368,2.94108691,58345.0,58343.0,0.30188765]
[1617980245569,1.41118691,58345.0,58343.0,0.30188765]
[1617980245819,1.41118691,58345.0,58339.0,0.30195878]
[1617980245820,4.06186485,58344.0,58339.0,0.30195878]
[1617980245966,5.20545485,58344.0,58339.0,0.30195878]
[1617980246168,5.20545485,58344.0,58331.0,0.44287287]
[1617980246169,1.66830484,58340.0,58334.0,0.30225123]
[1617980246569,0.30381163,58335.0,58333.0,0.30237946]
[1617980246884,4.30216818,58335.0,58333.0,0.30237946]
[1617980247069,1.0,58334.0,58331.0,0.30233019]
[1617980247470,1.0,58334.0,58332.0,3.99438828]
[1617980247669,0.41106818,58335.0,58333.0,3.6905]
[1617980247972,0.41106818,58335.0,58333.0,3.99266789]
[1617980247973,0.10725655,58335.0,58333.0,3.99266789]
[1617980248170,0.10725655,58335.0,58334.0,0.31205214]
[1617980248882,2.80435655,58335.0,58334.0,0.67420073]
[1617980249170,2.80435655,58335.0,58334.0,0.73529506]
[1617980254374,2.80435655,58335.0,58334.0,0.37314647]
[1617980254775,2.80435655,58335.0,58334.0,0.73515347]
[1617980254974,2.80435655,58335.0,58334.0,0.37314647]
[1617980255677,2.80435655,58335.0,58334.0,0.01]
[1617980256075,2.80435655,58335.0,58333.0,0.27]
[1617980256375,2.80435655,58335.0,58334.0,0.27]
[1617980256875,2.80435655,58335.0,58332.0,0.26]
[1617980257075,2.80435655,58335.0,58334.0,0.01]
[1617980257476,2.80435655,58335.0,58333.0,0.26]
[1617980257676,3.10787518,58335.0,58332.0,0.27]
[1617980257875,3.10787518,58335.0,58334.0,0.01]
[1617980258076,3.10787518,58335.0,58330.0,0.25]
[1617980258077,3.80435655,58335.0,58330.0,0.25]
[1617980258279,3.80435655,58335.0,58333.0,0.27]
[1617980258676,0.30347118,58334.0,58328.0,0.24]
[1617980258877,3.80435655,58335.0,58327.0,0.30190345]
[1617980258878,0.10725655,58329.0,58327.0,0.30190345]
[1617980259077,0.25751655,58329.0,58327.0,0.30190345]
[1617980259278,0.25751655,58329.0,58328.0,0.27]
[1617980259677,0.25751655,58329.0,58326.0,0.30192262]
[1617980259978,0.25751655,58329.0,58328.0,0.01]
[1617980260178,3.52971655,58329.0,58328.0,0.01]
[1617980260377,3.52971655,58329.0,58326.0,0.30192262]
[1617980260578,3.52971655,58329.0,58328.0,0.27]
[1617980260979,3.52971655,58329.0,58327.0,0.57170312]
[1617980261180,3.52971655,58329.0,58328.0,0.57104139]
[1617980261680,3.52971655,58329.0,58328.0,0.30104139]
[1617980261882,3.52971655,58329.0,58328.0,0.56104139]
[1617980262081,0.25751655,58329.0,58328.0,0.56104139]
[1617980262280,0.10725655,58329.0,58328.0,0.56104139]
[1617980262680,3.37675655,58329.0,58328.0,0.56104139]
[1617980263681,0.10725655,58329.0,58328.0,0.56104139]
[1617980264094,0.10725655,58329.0,58328.0,3.67564139]
[1617980265483,0.10725655,58329.0,58328.0,4.03616861]
[1617980266885,0.10725655,58329.0,58328.0,4.14342516]
[1617980268688,0.10725655,58329.0,58328.0,3.78289794]
[1617980269087,0.10725655,58329.0,58328.0,3.67564139]
[1617980271190,0.10725655,58329.0,58328.0,3.3746]
[1617980276893,0.10725655,58329.0,58328.0,3.67569693]
[1617980282302,0.10725655,58329.0,58328.0,4.037927]
[1617980282903,0.10725655,58329.0,58328.0,4.14518355]
[1617980283906,0.10725655,58329.0,58328.0,1.049127]
[1617980284206,2.87889655,58329.0,58328.0,0.923327]
[1617980284417,2.87889655,58329.0,58328.0,0.56109693]
[1617980284646,3.87889655,58329.0,58328.0,0.56109693]
[1617980285005,3.87889655,58329.0,58328.0,0.26]
[1617980285204,1.23969655,58329.0,58328.0,0.26]
[1617980285406,2.9607,58327.0,58326.0,0.30248776]
[1617980285606,2.9607,58327.0,58325.0,0.30256153]
[1617980286105,2.9607,58327.0,58325.0,0.27]
[1617980286518,2.9607,58327.0,58324.0,0.27]
[1617980286907,2.9607,58327.0,58326.0,0.27]
[1617980286908,3.26443692,58327.0,58326.0,0.27]
[1617980287107,3.26443692,58327.0,58324.0,0.27]
[1617980287309,4.26443692,58327.0,58324.0,0.27]
[1617980287508,3.9607,58327.0,58326.0,0.27]
[1617980287710,3.26453539,58327.0,58326.0,0.27]